bitfinex/quotes_SOLUSD_20260125
["timestamp","ask_amount","ask_price","bid_price","bid_amount"]
[1769308402512,0.94512373,127.22,127.18,2.11609078]
[1769308402710,0.94512373,127.22,127.19,0.92984793]
[1769308485984,0.99827561,127.23,127.2,0.94966513]
[1769308489900,0.99827561,127.23,127.19,62.38857912]
[1769308489901,0.2,127.26,127.22,0.94966513]
[1769308490199,0.99827561,127.25,127.21,14.20911962]
[1769308491294,0.99827561,127.25,127.21,2.11632792]
[1769308492008,0.99827561,127.25,127.22,0.94966513]
[1769308497706,6.45888682,127.26,127.22,0.94966513]
[1769308503121,4.3425589,127.26,127.23,0.98877359]
[1769308503508,0.2,127.26,127.23,0.98877359]
[1769308503900,1.20644757,127.26,127.23,0.98877359]
[1769308504114,1.20644757,127.26,127.23,3.10510151]
[1769308504315,1.20644757,127.26,127.24,0.98877359]
[1769308504514,7.86533439,127.26,127.23,3.10510151]
[1769308505222,7.86533439,127.26,127.23,0.98877359]
[1769308509524,6.85888682,127.26,127.23,0.98877359]
[1769308509825,1.00644757,127.25,127.23,0.98877359]
[1769308513824,6.85888682,127.26,127.23,0.98877359]
[1769308514026,0.2,127.26,127.25,2.11632792]
[1769308514223,0.2,127.26,127.24,3.12235898]
[1769308515430,0.2,127.26,127.25,1.00603106]
[1769308515725,0.2,127.27,127.26,1.00603106]
[1769308515924,3.44354198,127.27,127.26,2.11632792]
[1769308516225,0.2,127.27,127.25,1.00603106]
[1769308516817,1.28664746,127.27,127.23,10.98192879]
[1769308517326,1.28664746,127.27,127.24,1.00603106]
[1769308539055,1.28664746,127.27,127.23,3.23322164]
[1769308539245,1.28664746,127.27,127.22,50.95478199]
[1769308539246,1.08560814,127.25,127.22,50.95478199]
[1769308539852,1.08560814,127.24,127.2,105.21689372]
[1769308540054,1.08560814,127.22,127.2,1.11689372]
[1769308549561,1.08560814,127.22,127.19,1.11689372]
[1769308586296,1.08560814,127.22,127.18,28.22007786]
[1769308586510,1.10055032,127.21,127.18,28.22007786]
[1769308592627,1.10055032,127.21,127.18,27.07972511]
[1769308592810,1.10055032,127.21,127.18,28.14300177]
[1769308594106,1.10055032,127.21,127.18,27.07972511]
[1769308596327,1.10055032,127.21,127.18,28.14300177]
[1769308603839,1.10055032,127.21,127.18,27.07972511]
[1769308605234,1.10055032,127.21,127.18,28.14300177]
[1769308609442,1.10055032,127.21,127.18,27.07972511]
[1769308611749,1.07018298,127.2,127.18,27.07972511]
[1769308611918,1.07018298,127.19,127.18,27.07972511]
[1769308617050,2.11720317,127.2,127.18,27.07972511]
[1769308619052,3.18738615,127.2,127.18,27.07972511]
[1769308620149,1.07018298,127.2,127.18,27.07972511]
[1769308626144,3.18738615,127.2,127.18,27.07972511]
[1769308627671,3.21489996,127.19,127.18,27.07972511]
[1769308628237,3.21489996,127.19,127.16,1.09739961]
[1769308628458,2.84941987,127.18,127.16,1.09739961]
[1769308629462,0.7322167,127.18,127.16,1.09739961]
[1769308630667,2.11720317,127.19,127.16,1.09739961]
[1769308630957,2.85804799,127.19,127.16,1.09739961]
[1769308643570,0.79587924,127.18,127.16,1.09739961]
[1769308644275,2.11720317,127.19,127.16,1.09739961]
[1769308644475,2.91669955,127.19,127.16,1.09739961]
[1769308668084,0.87447507,127.18,127.16,1.09739961]
[1769308669385,2.99167824,127.18,127.16,1.09739961]
[1769308670900,2.99285131,127.18,127.16,1.09739961]
[1769308672787,2.11837624,127.17,127.14,1.11983281]
[1769308684307,2.99285131,127.18,127.14,1.11983281]
[1769308719838,0.87447507,127.18,127.14,1.11983281]
[1769308728240,3.05934264,127.2,127.15,1.24181291]
[1769308728950,0.94164728,127.19,127.15,1.24181291]
[1769308729142,3.06002352,127.19,127.15,1.24181291]
[1769308732942,3.0598073,127.19,127.15,1.24181291]
[1769308734850,3.06372804,127.19,127.15,1.24181291]
[1769308742460,0.950408,127.18,127.15,1.24181291]
[1769308746469,0.95320595,127.17,127.13,1.19203533]
[1769308746770,0.95320595,127.16,127.13,1.19203533]
[1769308747368,3.07136597,127.16,127.13,1.19203533]
[1769308748171,0.95320595,127.16,127.13,1.19203533]
[1769308748470,3.07136597,127.16,127.13,1.19203533]
[1769308750764,3.07136597,127.16,127.12,28.75562273]
[1769308750765,0.95537657,127.15,127.12,28.75562273]
[1769308751170,3.07353659,127.15,127.12,28.75562273]
[1769308751565,3.07353659,127.15,127.13,1.19203533]
[1769308755369,3.07656749,127.15,127.12,27.5635874]
[1769308755953,3.07656749,127.15,127.12,28.80512427]
[1769308764082,3.08032867,127.16,127.13,1.24153687]
[1769308773287,24.5674616,127.18,127.13,1.24153687]
[1769308773486,3.08494507,127.18,127.14,1.23418441]
[1769308780889,2.11816002,127.17,127.14,1.23418441]
[1769308785496,3.08494507,127.18,127.14,1.23418441]
[1769308792999,3.08534574,127.18,127.14,1.23418441]
[1769308821704,10.95162519,127.18,127.14,1.23418441]
[1769308842745,3.08534574,127.18,127.14,1.23418441]
[1769308843124,14.03697093,127.18,127.14,1.23418441]
[1769308847748,3.08534574,127.18,127.14,1.23418441]
[1769308848945,18.81790464,127.18,127.14,1.23418441]
[1769308849151,3.08534574,127.18,127.14,1.23418441]
[1769308853338,18.81068854,127.18,127.14,1.23418441]
[1769308854849,18.81058854,127.18,127.14,1.23418441]
[1769308864357,18.81058854,127.18,127.04,23.63]
[1769308864544,1.23487141,127.17,127.12,2.11846069]
[1769308864853,1.23487141,127.17,127.13,2.11846069]
[1769308866451,1.23487141,127.17,127.14,1.17616668]
[1769308875964,9.10114766,127.17,127.14,1.17616668]
[1769308877461,1.23487141,127.17,127.14,1.17616668]
[1769308880244,21.82,127.16,127.14,1.17616668]
[1769308880763,1.25009224,127.15,127.12,1.17741632]
[1769308880954,3.36855293,127.15,127.12,1.17741632]
[1769308882258,1.25009224,127.14,127.12,1.17741632]
[1769308883179,3.36855293,127.14,127.11,1.17741632]
[1769308884645,1.25009224,127.13,127.11,1.17741632]
[1769308887272,3.36855293,127.14,127.11,1.17741632]
[1769308890283,1.25009224,127.14,127.11,1.17741632]
[1769308891486,3.36855293,127.14,127.11,1.17741632]
[1769308916907,3.36990802,127.14,127.11,1.17741632]
[1769308921580,1.24163106,127.12,127.09,1.28820203]
[1769308921784,21.84,127.11,127.09,1.28820203]
[1769308923103,25.13855059,127.11,127.06,9.98982791]
[1769308923283,25.13855059,127.11,127.06,2.11981578]
[1769308923885,1.17873481,127.1,127.06,2.11981578]
[1769308924090,3.29855059,127.1,127.05,9.99047014]
[1769308925100,3.29855059,127.1,127.06,1.28987119]
[1769308925405,3.29855059,127.1,127.07,1.28987119]
[1769308925406,1.17873481,127.1,127.07,1.28987119]
[1769308933798,30.0,127.08,127.06,31.38634531]
[1769308934720,30.0,127.08,127.06,29.26652953]
[1769308935416,31.30704421,127.08,127.06,29.26652953]
[1769308935727,1.30704421,127.07,127.06,10.74008193]
[1769308944422,30.0,127.08,127.06,10.74008193]
[1769308944610,31.30704421,127.08,127.06,10.74008193]
[1769308954325,21.84,127.07,127.06,10.74008193]
[1769308958207,21.19235348,127.07,127.06,10.74008193]
[1769308958927,22.45606861,127.07,127.06,10.74008193]
[1769308959312,21.19235348,127.07,127.06,10.74008193]
[1769308979132,22.45606861,127.07,127.06,10.74008193]
[1769308999981,21.19235348,127.07,127.06,10.74008193]
[1769309000350,22.48475443,127.07,127.04,1.26079141]
[1769309000755,21.19235348,127.07,127.04,1.26079141]
[1769309002467,22.48475443,127.07,127.04,1.26079141]
[1769309005178,22.48475443,127.07,127.04,3.38226327]
[1769309015781,1.29240095,127.07,127.04,3.38226327]
[1769309015984,23.13240095,127.07,127.04,3.38226327]
[1769309018086,23.13240095,127.07,127.04,1.26079141]
[1769309019192,23.13240095,127.07,127.04,3.38226327]
[1769309020974,23.13240095,127.07,127.04,1.26079141]
[1769309022082,1.25061988,127.06,127.02,3.49449966]
[1769309022288,1.25061988,127.06,127.03,1.3730278]
[1769309022475,1.25061988,127.06,127.03,28.62349463]
[1769309023279,1.25061988,127.06,127.03,30.74496649]
[1769309023482,21.84,127.07,127.04,2.12147186]
[1769309023669,21.84,127.07,127.05,3.49449966]
[1769309024187,23.09061988,127.07,127.05,3.49449966]
[1769309024686,23.09061988,127.07,127.05,1.3730278]
[1769309027685,1.25061988,127.06,127.03,27.25046683]
[1769309027878,1.25061988,127.04,127.03,27.25046683]
[1769309028480,1.25061988,127.04,127.03,25.85892948]
[1769309028687,1.25061988,127.04,127.03,23.56166743]
[1769309028992,1.25061988,127.04,127.03,21.10935407]
[1769309031788,2.12147186,127.05,126.98,9.99649725]
[1769309031789,1.25061988,127.02,126.98,9.99649725]
[1769309031993,21.84,127.01,126.99,2.12147186]
[1769309032188,21.84,127.01,127.0,2.12147186]
[1769309032493,21.84,127.01,126.98,9.99649725]
[1769309033491,21.84,127.01,126.99,2.12147186]
[1769309033789,21.84,127.01,126.99,3.49449966]
[1769309038894,21.84,127.01,126.99,3.49630052]
[1769309040893,23.09061988,127.02,126.99,3.49630052]
[1769309047101,23.09061988,127.02,127.0,2.12327272]
[1769309048608,23.09061988,127.02,127.0,3.50896815]
[1769309058386,23.09061988,127.02,127.0,1.38569543]
[1769309063314,23.09061988,127.02,127.0,3.50896815]
[1769309063514,23.09061988,127.02,127.01,2.12327272]
[1769309063897,21.84,127.02,127.01,2.12327272]
[1769309065116,21.84,127.02,127.0,3.50896815]
[1769309076927,21.84,127.02,127.0,1.38569543]
[1769309079241,21.84,127.02,127.0,3.50896815]
[1769309080136,21.84,127.02,127.0,1.38569543]
[1769309080339,1.41625238,127.01,126.99,27.23890451]
[1769309081124,1.41625238,127.01,126.99,9.90890451]
[1769309083445,1.41625238,127.01,126.97,3.58935715]
[1769309083820,1.41625238,127.0,126.97,1.46608443]
[1769309085646,1.41625238,127.0,126.95,1.46608443]
[1769309085829,1.41625238,126.99,126.95,1.46608443]
[1769309086231,1.41625238,126.98,126.95,3.58935715]
[1769309087248,1.41625238,126.98,126.96,1.46608443]
[1769309087552,1.41625238,126.98,126.95,3.58935715]
[1769309089435,1.41625238,126.98,126.95,1.46608443]
[1769309094541,1.41625238,126.98,126.95,3.58935715]
[1769309098865,1.41625238,126.98,126.95,3.5907792]
[1769309118181,1.44312995,126.99,126.96,3.59962985]
[1769309119474,1.44312995,127.0,126.97,3.59962985]
[1769309119975,21.86,126.99,126.97,3.59962985]
[1769309120174,23.30312995,126.99,126.97,3.59962985]
[1769309124686,23.30312995,126.99,126.97,1.47493508]
[1769309125184,23.30312995,126.99,126.95,31.83305794]
[1769309125489,1.44312995,126.98,126.95,31.83305794]
[1769309125687,1.44312995,126.98,126.95,30.35812286]
[1769309126082,1.44312995,126.98,126.95,28.55245078]
[1769309126083,2.12469477,126.98,126.95,28.55245078]
[1769309126281,29.73464711,126.99,126.94,0.1]
[1769309126478,21.86,126.99,126.94,1.69948465]
[1769309126682,23.98469477,126.99,126.94,3.82417942]
[1769309126882,7.48555665,126.98,126.94,0.1]
[1769309127278,15.36097098,126.98,126.94,0.1]
[1769309127463,2.12469477,126.97,126.94,0.1]
[1769309127668,1.44312995,126.96,126.92,2.12469477]
[1769309127868,1.44312995,126.95,126.92,2.12469477]
[1769309130188,1.44312995,126.95,126.91,0.1]
[1769309130379,3.56782472,126.92,126.89,1.47493508]
[1769309130689,21.86,126.91,126.89,1.47493508]
[1769309130892,21.86,126.91,126.89,3.59962985]
[1769309131570,21.86,126.91,126.89,1.47493508]
[1769309132069,1.44312995,126.92,126.89,1.47493508]
[1769309132274,21.86,126.91,126.89,3.59962985]
[1769309133394,21.86,126.91,126.89,1.47493508]
[1769309135875,21.86,126.91,126.9,1.60850662]
[1769309136074,18.59032222,126.91,126.9,3.73320139]
[1769309136270,16.86299833,126.91,126.9,3.73320139]
[1769309137495,16.86299833,126.91,126.9,1.60850662]
[1769309138998,1.64875851,126.94,126.88,30.0]
[1769309139189,1.679218,126.95,126.91,2.12469477]
[1769309140003,1.679218,126.93,126.88,40.00569799]
[1769309140389,1.679218,126.93,126.89,0.03975914]
[1769309140992,1.679218,126.93,126.89,2.16445391]
[1769309142302,1.679218,126.93,126.9,0.059293]
[1769309142704,1.679218,126.93,126.89,2.20329952]
[1769309143206,1.679218,126.93,126.9,0.07860475]
[1769309144509,1.679218,126.93,126.89,0.11655869]
[1769309144691,1.679218,126.93,126.89,2.24125346]
[1769309145011,1.679218,126.93,126.9,0.11655869]
[1769309149721,1.679218,126.93,126.9,2.24125346]
[1769309149898,1.679218,126.95,126.91,0.20767048]
[1769309150102,1.679218,126.95,126.91,2.33236525]
[1769309152291,1.679218,126.95,126.92,2.12469477]
[1769309154812,1.679218,126.95,126.93,2.12469477]
[1769309154997,1.679218,126.95,126.92,2.41412854]
[1769309156325,1.679218,126.95,126.92,0.28943377]
[1769309156924,2.12469477,126.97,126.92,0.28943377]
[1769309157133,1.679218,126.97,126.93,0.32084187]
[1769309157636,1.679218,126.98,126.95,0.33624927]
[1769309163532,1.72822859,126.99,126.96,0.43934058]
[1769309164620,1.72822859,126.99,126.95,0.45340369]
[1769309175636,1.72822859,126.99,126.96,0.61001115]
[1769309175837,1.87100608,127.0,126.97,0.61001115]
[1769309176530,1.87100608,127.0,126.97,2.73475462]
[1769309180252,1.87100608,127.0,126.97,0.61001115]
[1769309211558,1.87100608,127.0,126.97,2.73475462]
[1769309214439,1.87100608,127.0,126.97,2.12474347]
[1769309214638,1.87100608,127.0,126.96,3.10901109]
[1769309220984,1.87100608,127.0,126.96,3.1083115]
[1769309234617,1.87100608,127.0,126.96,0.98426762]
[1769309238318,1.87100608,127.0,126.96,3.1083115]
[1769309242722,1.87100608,127.0,126.96,2.12404388]
[1769309243025,1.87100608,127.0,126.95,11.10423307]
[1769309243230,1.87100608,127.0,126.96,1.10336906]
[1769309246423,1.87100608,127.0,126.96,3.22741294]
[1769309248306,1.87100608,127.0,126.96,1.10336906]
[1769309251324,1.87100608,127.0,126.96,3.22741294]
[1769309281568,1.87100608,127.0,126.97,3.3233318]
[1769309281947,1.87100608,127.0,126.98,2.12404388]
[1769309282871,1.87100608,127.0,126.97,3.3228004]
[1769309283972,2.23251029,127.01,126.98,1.20306295]
[1769309284158,2.23251029,127.02,126.99,3.32657543]
[1769309286186,2.23251029,127.02,126.99,1.20306295]
[1769309287384,2.23251029,127.02,126.99,3.32657543]
[1769309296090,2.23251029,127.02,127.0,3.3414739]
[1769309302388,2.23251029,127.02,127.0,2.12351248]
[1769309302580,2.23251029,127.02,126.99,3.34759788]
[1769309305688,2.23251029,127.02,127.0,2.12351248]
[1769309308491,2.23251029,127.02,126.99,30.48225167]
[1769309332632,2.23251029,127.02,126.99,60.4144301]
[1769309341545,2.23251029,127.02,126.99,30.48225167]
[1769309343046,2.23251029,127.02,126.99,30.48165047]
[1769309349735,2.23251029,127.02,126.99,28.35873919]
[1769309357661,2.23251029,127.02,126.99,30.48165047]
[1769309360669,2.23251029,127.02,126.99,28.35873919]
[1769309377875,2.23251029,127.02,126.99,28.18990502]
[1769309380788,2.23251029,127.02,127.0,1.05392918]
[1769309381686,2.23251029,127.02,126.99,28.18860102]
[1769309407914,2.23251029,127.02,126.99,30.31156043]
[1769309423719,2.23251029,127.02,126.99,53.93453771]
[1769309424028,2.23251029,127.02,126.99,30.31156043]
[1769309426525,2.23251029,127.02,126.99,3.17690664]
[1769309434831,2.23251029,127.02,126.99,26.79988392]
[1769309435006,2.23251029,127.02,126.99,3.17690664]
[1769309436243,2.23251029,127.02,126.99,26.79988392]
[1769309436550,2.23251029,127.02,126.99,3.17690664]
[1769309439033,2.23251029,127.02,126.99,26.79988392]
[1769309439859,2.23251029,127.02,126.99,3.17690664]
[1769309443257,2.23251029,127.02,126.99,26.79988392]
[1769309466880,2.23251029,127.02,126.99,24.67692451]
[1769309473788,2.23251029,127.02,126.99,26.79983887]
[1769309487611,2.23251029,127.02,126.99,24.67692451]
[1769309494406,2.23251029,127.02,126.99,26.79983887]
[1769309498412,2.23251029,127.02,126.99,24.67692451]
[1769309504722,2.23251029,127.02,126.99,26.79983887]
[1769309526946,2.23251029,127.02,126.99,26.79989782]
[1769309542048,2.23251029,127.02,126.99,3.17692054]
[1769309542363,2.23251029,127.02,127.0,23.62297728]
[1769309542658,2.23251029,127.02,127.0,51.17897304]
[1769309548281,2.11091629,127.04,127.0,38.60899602]
[1769309548481,2.11091629,127.04,127.01,23.62111727]
[1769309548860,2.11091629,127.05,127.02,3.17899622]
[1769309549165,2.11091629,127.05,127.03,2.12297331]
[1769309549364,2.11091629,127.05,127.03,3.17899622]
[1769309549655,2.31091629,127.06,127.03,26.79453524]
[1769309550068,2.31091629,127.06,127.03,3.17899622]
[1769309550384,2.31091629,127.06,127.04,23.61553902]
[1769309553679,0.2,127.06,127.04,23.61553902]
[1769309553980,2.27521947,127.06,127.04,23.61553902]
[1769309562693,0.2,127.06,127.04,24.67143741]
[1769309563189,0.2,127.06,127.04,32.54292412]
[1769309563488,0.2,127.06,127.04,34.66589743]
[1769309567012,2.27521947,127.06,127.04,33.60999904]
[1769309567491,2.27521947,127.06,127.04,34.66586953]
[1769309567792,2.27521947,127.06,127.04,33.60999904]
[1769309568795,2.27521947,127.06,127.04,31.48702573]
[1769309585920,2.27521947,127.06,127.04,23.61553902]
[1769309586113,2.27521947,127.06,127.04,21.3240195]
[1769309604141,2.27521947,127.06,127.03,10.11113867]
[1769309604659,2.27521947,127.06,127.03,31.43515817]
[1769309616756,2.27521947,127.06,127.03,10.11113867]
[1769309619849,4.39732413,127.06,127.03,10.11113867]
[1769309620049,4.57779177,127.06,127.03,10.11113867]
[1769309620559,2.45568711,127.06,127.03,10.11113867]
[1769309628478,2.45568711,127.06,127.03,7.87186085]
[1769309639095,2.45568711,127.06,127.03,2.31445155]
[1769309642701,2.45568711,127.06,127.02,10.13894862]
[1769309643697,2.21069629,127.05,127.02,7.87277594]
[1769309644101,2.21069629,127.05,127.02,10.13894862]
[1769309649406,2.21069629,127.05,127.02,40.22680806]
[1769309651809,2.21069629,127.05,127.02,10.13894862]
[1769309690543,2.21069629,127.05,127.02,2.26617268]
[1769309690852,2.31839618,127.04,126.99,2.37864383]
[1769309691042,2.31839618,127.04,127.0,2.37864383]
[1769309691223,2.31839618,127.03,127.0,2.37864383]
[1769309692548,2.31839618,127.03,127.0,10.25262452]
[1769309699655,2.31839618,127.03,127.0,2.37864383]
[1769309707959,2.31839618,127.03,126.99,40.43088347]
[1769309708866,2.31839618,127.03,126.99,40.43176062]
[1769309712564,2.31839618,127.03,127.0,2.42955457]
[1769309716768,2.1231891,127.02,126.99,30.42872511]
[1769309716971,2.30670874,127.0,126.99,27.99917054]
[1769309717270,2.30670874,127.0,126.97,10.30503788]
[1769309721372,2.30670874,127.0,126.97,12.42822698]
[1769309721569,2.30670874,127.03,127.0,2.42955457]
[1769309722769,2.30670874,127.03,127.0,4.55274367]
[1769309724579,2.30670874,127.03,127.0,12.42670175]
[1769309726882,2.30670874,127.03,127.0,10.30351265]
[1769309733278,2.1231891,127.04,127.01,2.42361632]
[1769309733279,2.46312192,127.04,127.01,2.42361632]
[1769309733588,2.46312192,127.04,127.01,33.11971518]
[1769309738671,2.46312192,127.04,127.01,2.42361632]
[1769309744498,4.58631102,127.04,127.0,4.54680542]
[1769309744703,2.46312192,127.03,127.0,2.42361632]
[1769309776941,2.43025774,127.02,127.0,2.42361632]
[1769309800465,2.43025774,127.02,127.0,4.5465981]
[1769309801365,2.40710742,127.04,127.0,4.5465981]
[1769309802366,2.40710742,127.04,127.0,2.42361632]
[1769309816577,2.40710742,127.03,126.99,30.27374619]
[1769309816762,4.5300892,127.02,126.99,30.27374619]
[1769309825283,2.40710742,127.02,126.99,30.27374619]
[1769309832384,2.40710742,127.02,126.99,28.00716451]
[1769309833588,2.31740788,127.01,126.99,28.00716451]
[1769309844097,2.31740788,127.01,126.98,2.26361834]
[1769309855304,2.31740788,127.01,126.98,10.13887221]
[1769309856602,2.50505567,127.02,126.99,2.35712627]
[1769309856803,2.50505567,127.02,126.99,29.70906206]
[1769309857302,2.50505567,127.02,127.0,2.35712627]
[1769309858499,2.50505567,127.02,126.99,27.35193579]
[1769309858687,2.50505567,127.02,126.99,29.70906206]
[1769309860102,2.50505567,127.02,126.99,31.83269452]
[1769309862914,2.50505567,127.02,126.99,29.70906206]
[1769309902249,2.50505567,127.02,126.99,27.35193579]
[1769309902455,2.50505567,127.02,126.99,29.80160534]
[1769309923495,2.37813082,127.04,127.0,2.31379285]
[1769309923650,2.37813082,127.03,127.0,2.31379285]
[1769309927182,4.50161037,127.03,127.0,2.31379285]
[1769309929385,2.37813082,127.03,127.0,2.31379285]
[1769309932291,2.37813082,127.02,126.99,27.35193579]
[1769309932478,2.37813082,127.01,126.99,27.35193579]
[1769309933990,2.37813082,127.01,126.99,29.66572864]
[1769309960818,2.37813082,127.01,126.99,27.35193579]
[1769309966620,2.37813082,127.01,126.99,29.84245805]
[1769309979115,2.37813082,127.01,126.99,2.49052226]
[1769309980134,12.3328895,127.02,126.99,2.49052226]
[1769309985535,4.46135002,127.02,126.99,2.49052226]
[1769309986642,5.36086188,127.01,126.99,2.49052226]
[1769310001055,2.33766942,127.02,126.98,2.30084433]
[1769310001547,22.33177823,127.02,126.98,2.30084433]
[1769310002250,22.33177823,127.02,126.99,2.30084433]
[1769310002451,2.33766942,127.04,127.01,2.30084433]
[1769310010354,10.21216471,127.04,127.01,2.30084433]
[1769310013056,12.33504543,127.04,127.01,2.30084433]
[1769310014756,10.21216471,127.04,127.01,2.30084433]
[1769310025570,2.33766942,127.04,127.01,2.30084433]
[1769310037676,2.33766942,127.04,127.01,32.38826013]
[1769310043300,2.33766942,127.04,127.01,2.30084433]
[1769310050112,2.33766942,127.04,127.0,29.7236734]
[1769310050311,2.36142834,127.03,127.0,29.7236734]
[1769310054112,4.48430906,127.03,127.0,29.7236734]
[1769310054308,2.36142834,127.03,127.0,29.7236734]
[1769310058299,2.36142834,127.03,127.0,27.24346008]
[1769310058515,2.36142834,127.03,127.0,29.7236734]
[1769310065423,2.36142834,127.03,127.0,27.24346008]
[1769310065633,2.36142834,127.03,127.01,2.43258184]
[1769310066335,17.87171264,127.05,127.02,2.43258184]
[1769310066543,0.2,127.06,127.04,2.43258184]
[1769310066823,0.2,127.06,127.04,4.55546256]
[1769310069900,0.2,127.06,127.05,2.43258184]
[1769310071427,0.2,127.06,127.04,4.55546256]
[1769310072101,0.2,127.06,127.05,2.43258184]
[1769310072319,0.2,127.06,127.04,12.35471503]
[1769310072519,0.2,127.06,127.05,2.36031284]
[1769310074634,0.2,127.06,127.04,4.48319356]
[1769310074926,0.2,127.06,127.04,4.48169215]
[1769310075729,0.2,127.06,127.04,2.12137931]
[1769310075930,0.2,127.06,127.05,2.36031284]
[1769310080464,0.2,127.06,127.04,10.23166081]
[1769310080760,0.2,127.06,127.04,4.48169215]
[1769310084057,0.10555271,127.06,127.04,4.48169215]
[1769310085556,0.10555271,127.06,127.04,12.35318997]
[1769310085759,32.43520243,127.08,127.05,4.48169215]
[1769310088251,32.43520243,127.08,127.05,2.36031284]
[1769310092342,32.43520243,127.08,127.05,2.12137931]
[1769310092542,32.43520243,127.08,127.06,2.36031284]
[1769310094661,32.43520243,127.08,127.05,2.12137931]
[1769310094962,32.43520243,127.08,127.05,4.48139722]
[1769310095561,32.43520243,127.08,127.05,2.36001791]
[1769310104557,2.27808605,127.07,127.05,2.36001791]
[1769310105789,32.27808605,127.08,127.05,2.36001791]
[1769310119695,32.27808605,127.08,127.06,2.36001791]
[1769310119881,30.0,127.08,127.06,2.36001791]
[1769310120989,32.27808605,127.08,127.06,2.36001791]
[1769310123294,32.27808605,127.08,127.05,2.46506441]
[1769310123492,2.35240841,127.07,127.04,2.46506441]
[1769310123994,30.0,127.08,127.04,2.46506441]
[1769310124197,27.49936671,127.08,127.04,1.15945575]
[1769310124389,26.33991621,127.08,127.03,27.55254663]
[1769310126613,26.33991621,127.08,127.04,0.02213395]
[1769310131395,28.84060978,127.08,127.04,0.02213395]
[1769310131717,2.50069357,127.07,127.04,0.02213395]
[1769310132108,26.33991621,127.08,127.04,0.02213395]
[1769310133315,28.84060978,127.08,127.04,0.02213395]
[1769310135417,2.50069357,127.07,127.04,0.02213395]
[1769310155547,2.50069357,127.07,127.03,51.16622682]
[1769310158344,2.50069357,127.07,127.03,31.48583637]
[1769310158533,2.50069357,127.07,127.03,7.87215618]
[1769310159554,2.50069357,127.07,127.02,7.87277594]
[1769310176151,2.50069357,127.07,127.01,27.55582513]
[1769310187758,2.50069357,127.07,126.98,27.5633958]
[1769310187954,2.50069357,127.07,126.98,131.6633958]
[1769310188161,2.50069357,127.07,126.99,23.61925756]
[1769310188338,2.50069357,127.07,126.99,50.8786205]
[1769310188756,2.50069357,127.07,126.99,27.25936294]
[1769310189064,2.50069357,127.07,127.0,23.61925756]
[1769310189357,2.50069357,127.07,126.99,27.25936294]
[1769310189559,2.50069357,127.07,127.0,23.61925756]
[1769310192550,2.50069357,127.07,127.01,7.87339579]
[1769310194172,2.50069357,127.07,127.0,7.87401574]
[1769310194837,2.50069357,127.07,127.0,27.55905511]
[1769310196161,2.50069357,127.07,127.0,51.17831267]
[1769310197570,2.50069357,127.07,127.0,27.55905511]
[1769310199879,2.50069357,127.07,127.0,51.17831267]
[1769310206279,2.50069357,127.07,127.0,27.55905511]
[1769310232399,2.50069357,127.07,127.0,131.65905511]
[1769310232899,2.50069357,127.07,127.01,23.61368019]
[1769310234211,2.50069357,127.07,127.02,27.55471579]
[1769310243420,2.50069357,127.07,127.02,7.87277594]
[1769310244417,2.50069357,127.07,127.0,27.55814414]
[1769310294263,2.50069357,127.07,127.0,51.17554228]
[1769310302276,2.50069357,127.07,127.0,27.55814414]
[1769310302778,2.50069357,127.07,127.0,51.17554228]
[1769310315807,2.50069357,127.07,127.0,66.92822288]
[1769310316107,2.50069357,127.07,127.01,23.61368019]
[1769310316279,2.50069357,127.07,127.01,81.64255994]
[1769310316681,2.50069357,127.07,127.01,58.02887975]
[1769310316903,2.50069357,127.07,127.03,7.87215618]
[1769310321212,2.50069357,127.07,127.03,27.55254663]
[1769310325110,2.50069357,127.07,127.03,19.68039045]
[1769310327394,2.50069357,127.07,127.04,9.99259674]
[1769310332610,2.50069357,127.07,127.05,2.12133704]
[1769310332814,2.50069357,127.07,127.04,2.12133704]
[1769310335715,2.50069357,127.07,127.05,2.12133704]
[1769310342229,2.50069357,127.07,127.05,9.99210567]
[1769310362741,2.50069357,127.07,127.05,2.12133704]
[1769310363032,2.50069357,127.07,127.04,7.87125756]
[1769310363233,2.50069357,127.07,127.04,9.9925946]
[1769310382846,2.50069357,127.07,127.04,7.87125756]
[1769310383145,2.50069357,127.07,127.04,2.12138201]
[1769310385249,2.50069357,127.07,127.04,9.99275897]
[1769310390449,2.50069357,127.07,127.03,31.48553846]
[1769310390656,2.50069357,127.07,127.03,9.99324028]
[1769310390958,2.50069357,127.06,127.03,7.87185827]
[1769310393559,2.50069357,127.06,127.03,9.99324028]
[1769310400856,2.50069357,127.06,127.02,31.48788507]
[1769310401062,2.50069357,127.06,127.02,9.99372806]
[1769310403756,4.62207558,127.06,127.01,31.48858132]
[1769310403961,2.50069357,127.05,127.01,9.99442431]
[1769310405742,2.50069357,127.05,127.01,2.12138201]
[1769310407867,2.50069357,127.02,126.99,23.62111727]
[1769310408069,2.50069357,127.02,127.01,2.12138201]
[1769310408256,23.62483757,127.05,127.01,2.12138201]
[1769310408462,23.96138201,127.06,127.02,2.12138201]
[1769310408772,47.58249928,127.06,127.02,2.12138201]